bitfinex-derivatives/quotes_BTCF0:USTF0_20260207
["timestamp","ask_amount","ask_price","bid_price","bid_amount"]
[1770473647370,0.5731652,69053.0,69039.0,0.0002]
[1770473647574,0.5731652,69051.0,69029.0,0.48622515]
[1770473647771,0.5731652,69049.0,69029.0,0.48622515]
[1770473648280,0.008,69030.0,69029.0,0.48622515]
[1770473648475,0.008,69030.0,69019.0,0.54861965]
[1770473648676,0.00011222,69029.0,69019.0,0.54861965]
[1770473648879,0.57582037,69078.0,69026.0,0.54861965]
[1770473648880,0.008,69048.0,69026.0,0.54861965]
[1770473649075,0.5731652,69057.0,69026.0,0.54861965]
[1770473649277,0.5731652,69055.0,69026.0,0.54861965]
[1770473649683,0.008,69068.0,69026.0,0.54861965]
[1770473649684,0.5731652,69053.0,69026.0,0.54861965]
[1770473650177,0.5731652,69051.0,69026.0,0.54861965]
[1770473650581,0.56390412,69049.0,69026.0,0.54861965]
[1770473651088,0.56390412,69047.0,69026.0,0.54861965]
[1770473651283,0.56390412,69047.0,69018.0,0.28368928]
[1770473651583,0.91290412,69027.0,69005.0,0.0002]
[1770473651972,0.008,69026.0,69005.0,0.0002]
[1770473652171,0.008,69025.0,69005.0,0.0002]
[1770473652378,0.57190412,69026.0,69001.0,0.56807996]
[1770473652575,0.349,69006.0,69001.0,0.56807996]
[1770473653377,0.047,69002.0,69001.0,0.56807996]
[1770473653777,0.349,69006.0,69001.0,0.56807996]
[1770473653975,0.008,69025.0,69001.0,0.56807996]
[1770473653976,0.56390412,69024.0,69001.0,0.56807996]
[1770473654174,0.61890412,69024.0,69001.0,0.56807996]
[1770473654377,0.61890412,69023.0,69001.0,0.56807996]
[1770473654577,0.56390412,69023.0,69001.0,0.56807996]
[1770473654778,0.56390412,69021.0,68992.0,0.5682643]
[1770473655287,0.56390412,69019.0,68992.0,0.5682643]
[1770473655673,0.055,69018.0,68992.0,0.5682643]
[1770473656079,0.055,69017.0,68996.0,0.28995868]
[1770473656281,0.055,69018.0,68997.0,0.56807996]
[1770473656582,0.56390412,69028.0,68997.0,0.56807996]
[1770473656783,0.56390412,69026.0,68997.0,0.56807996]
[1770473657173,0.56390412,69024.0,68997.0,0.56807996]
[1770473657590,0.055,69023.0,68997.0,0.56807996]
[1770473657885,0.61890412,69023.0,68997.0,0.56807996]
[1770473658081,0.055,69022.0,68997.0,0.56807996]
[1770473658488,0.055,69021.0,68997.0,0.56807996]
[1770473658689,0.61890412,69022.0,68997.0,0.56807996]
[1770473658891,0.56390412,69022.0,68997.0,0.56807996]
[1770473659088,0.055,69021.0,68997.0,0.56807996]
[1770473659389,0.56390412,69033.0,69003.0,0.56807996]
[1770473659588,0.055,69032.0,69003.0,0.56807996]
[1770473659788,0.055,69032.0,69005.0,0.56807996]
[1770473659989,0.055,69031.0,69010.0,0.56807996]
[1770473660188,0.56390412,69041.0,69010.0,0.56807996]
[1770473660389,0.055,69040.0,69010.0,0.56807996]
[1770473660883,0.56390412,69041.0,69010.0,0.56807996]
[1770473660884,0.055,69039.0,69010.0,0.56807996]
[1770473661084,0.055,69040.0,69012.0,0.56807996]
[1770473661278,0.055,69040.0,68997.0,0.014508]
[1770473661279,0.055,69040.0,69014.0,0.56807996]
[1770473661483,0.055,69039.0,69014.0,0.56807996]
[1770473661685,0.56390412,69050.0,69014.0,0.56807996]
[1770473661892,0.56390412,69048.0,69005.0,0.56807996]
[1770473662086,0.56390412,69048.0,69013.0,0.0002]
[1770473662282,0.14693284,69060.0,69013.0,0.0002]
[1770473662283,0.56390412,69046.0,69013.0,0.0002]
[1770473662683,0.56390412,69044.0,69013.0,0.0002]
[1770473663182,0.56390412,69042.0,69005.0,0.56807996]
[1770473663677,0.56390412,69040.0,69005.0,0.56807996]
[1770473664083,0.56390412,69038.0,69005.0,0.56807996]
[1770473664585,0.56390412,69036.0,69005.0,0.56807996]
[1770473664982,0.61890412,69035.0,69005.0,0.56807996]
[1770473665182,0.56390412,69033.0,69005.0,0.56807996]
[1770473665579,0.56390412,69031.0,69005.0,0.56807996]
[1770473666096,0.055,69030.0,69005.0,0.56807996]
[1770473666282,0.61890412,69030.0,69005.0,0.56807996]
[1770473666489,0.055,69029.0,69005.0,0.56807996]
[1770473666885,0.055,69028.0,69005.0,0.56807996]
[1770473667093,0.055,69029.0,69005.0,0.56807996]
[1770473667295,0.61890412,69029.0,68997.0,0.56807996]
[1770473667489,0.56390412,69027.0,68997.0,0.56807996]
[1770473667888,0.56390412,69025.0,68997.0,0.56807996]
[1770473668387,0.56390412,69023.0,68997.0,0.56807996]
[1770473668787,0.61890412,69022.0,68997.0,0.56807996]
[1770473668985,0.56390412,69022.0,68997.0,0.58258796]
[1770473669186,0.56390412,69022.0,69000.0,0.56807996]
[1770473669187,0.055,69021.0,69000.0,0.56807996]
[1770473669684,0.055,69020.0,69000.0,0.56807996]
[1770473669888,0.055,69021.0,69003.0,0.014507]
[1770473670089,0.56390412,69030.0,69004.0,0.56807996]
[1770473670294,0.055,69029.0,69004.0,0.56807996]
[1770473670687,0.56390412,69030.0,69004.0,0.56807996]
[1770473670688,0.055,69028.0,69004.0,0.56807996]
[1770473670891,0.055,69029.0,69004.0,0.56807996]
[1770473671292,0.055,69028.0,69004.0,0.56807996]
[1770473671488,0.055,69029.0,69004.0,0.56807996]
[1770473671795,0.56390412,69038.0,69004.0,0.56807996]
[1770473671996,0.43135219,69039.0,69004.0,0.56807996]
[1770473671997,0.56390412,69036.0,69004.0,0.56807996]
[1770473672388,0.56390412,69034.0,69004.0,0.56807996]
[1770473672789,0.61890412,69033.0,69004.0,0.56807996]
[1770473672989,0.56390412,69033.0,69004.0,0.56807996]
[1770473673189,0.56390412,69031.0,69004.0,0.56807996]
[1770473673590,0.055,69030.0,69004.0,0.56807996]
[1770473674092,0.61890412,69029.0,69004.0,0.56807996]
[1770473674298,0.56390412,69029.0,69004.0,0.56807996]
[1770473674491,0.61890412,69028.0,69004.0,0.56807996]
[1770473674691,0.56390412,69028.0,69004.0,0.56807996]
[1770473674893,0.055,69027.0,69004.0,0.56807996]
[1770473675190,0.61890412,69027.0,69004.0,0.56807996]
[1770473675397,0.055,69026.0,69004.0,0.56807996]
[1770473675692,0.055,69026.0,69004.0,0.56907996]
[1770473675888,0.055,69025.0,69004.0,0.56907996]
[1770473676089,0.055,69026.0,69004.0,0.56907996]
[1770473676498,0.055,69025.0,69004.0,0.56807996]
[1770473676697,0.60323455,69026.0,69004.0,0.56807996]
[1770473676998,0.54823455,69026.0,69004.0,0.56807996]
[1770473677192,0.055,69025.0,69004.0,0.56807996]
[1770473677697,0.055,69024.0,69004.0,0.56807996]
[1770473677884,0.055,69025.0,69004.0,0.56807996]
[1770473678088,0.055,69026.0,69004.0,0.56807996]
[1770473678497,0.055,69025.0,69004.0,0.56807996]
[1770473679696,0.00031,69023.0,69004.0,0.56807996]
[1770473680994,0.00031,69023.0,68996.0,0.28995868]
[1770473680995,0.57582037,69034.0,69009.0,0.55937265]
[1770473681298,0.57582037,69034.0,69018.0,0.40534652]
[1770473681599,0.54823455,69048.0,69018.0,0.40534652]
[1770473681600,1.12405492,69048.0,69018.0,0.40534652]
[1770473681897,0.54823455,69041.0,69018.0,0.40534652]
[1770473682201,1.12405492,69048.0,69022.0,0.40466155]
[1770473682494,0.54823455,69048.0,69022.0,0.40466155]
[1770473683095,0.54823455,69048.0,69024.0,0.40466155]
[1770473684301,0.57582037,69053.0,69027.0,0.42606725]
[1770473684600,0.57582037,69053.0,69031.0,0.42606725]
[1770473684799,1.26863727,69063.0,69031.0,0.42606725]
[1770473685200,0.54823455,69062.0,69031.0,0.42606725]
[1770473685400,0.54823455,69062.0,69034.0,0.42606725]
[1770473685600,0.54823455,69062.0,69036.0,0.42606725]
[1770473686803,0.54823455,69062.0,69038.0,0.42939247]
[1770473687599,0.57582037,69077.0,69038.0,0.44389247]
[1770473687805,0.54823455,69076.0,69041.0,0.42939247]
[1770473688002,0.54823455,69076.0,69043.0,0.42632468]
[1770473688198,0.54823455,69076.0,69045.0,0.42632468]
[1770473688903,0.54823455,69076.0,69050.0,0.29581836]
[1770473689300,0.54823455,69076.0,69050.0,0.72214304]
[1770473689499,0.54823455,69076.0,69051.0,0.42632468]
[1770473690806,0.54823455,69076.0,69057.0,0.28697376]
[1770473694112,0.54823455,69076.0,69050.0,0.29581836]
[1770473694407,0.54823455,69069.0,69038.0,0.28586786]
[1770473694604,0.54823455,69069.0,69032.0,0.40506276]
[1770473694605,0.4295298,69065.0,69032.0,0.40506276]
[1770473694812,0.54823455,69064.0,69032.0,0.40506276]
[1770473695311,0.54823455,69059.0,69032.0,0.40506276]
[1770473696306,0.54823455,69063.0,69039.0,0.55937265]
[1770473696500,0.4295298,69067.0,69039.0,0.55937265]
[1770473696695,0.54823455,69073.0,69039.0,0.55937265]
[1770473696901,0.4295298,69075.0,69052.0,0.55937265]
[1770473697199,1.14993252,69087.0,69065.0,0.55937265]
[1770473697401,0.4295298,69087.0,69065.0,0.55937265]
[1770473697611,0.54823455,69091.0,69065.0,0.55937265]
[1770473699209,0.97776435,69099.0,69065.0,0.55937265]
[1770473699407,0.54823455,69098.0,69065.0,0.55937265]
[1770473700213,0.54823455,69098.0,69057.0,0.55937265]
[1770473700409,0.54823455,69098.0,69038.0,0.28664279]
[1770473700410,0.54823455,69091.0,69049.0,0.55937265]
[1770473700808,0.54823455,69082.0,69049.0,0.55937265]
[1770473701011,0.349,69050.0,69041.0,0.55937265]
[1770473701406,0.349,69050.0,69038.0,0.28664279]
[1770473701913,0.54523455,69073.0,69039.0,0.55937265]
[1770473702214,0.54523455,69073.0,69043.0,0.00395608]
[1770473702811,0.54523455,69073.0,69038.0,0.28664279]
[1770473704114,0.54523455,69073.0,69038.0,0.30879296]
[1770473705613,0.54523455,69073.0,69039.0,0.02215017]
[1770473706318,0.54523455,69073.0,69047.0,0.01937056]
[1770473706811,0.57687647,69086.0,69047.0,0.01937056]
[1770473707317,0.57687647,69085.0,69047.0,0.01937056]
[1770473708513,0.57687647,69085.0,69048.0,0.014498]
[1770473708715,0.57687647,69085.0,69049.0,0.01247094]
[1770473709222,0.57917635,69084.0,69049.0,0.01247094]
[1770473710120,1.00870615,69084.0,69049.0,0.01247094]
[1770473710313,0.57828379,69083.0,69049.0,0.01247094]
[1770473710513,1.00781359,69083.0,69049.0,0.01247094]
[1770473710721,0.57828379,69082.0,69049.0,0.01247094]
[1770473710916,0.57828379,69080.0,69049.0,0.01247094]
[1770473711128,0.57828379,69080.0,69050.0,0.01514862]
[1770473711313,1.00781359,69078.0,69050.0,0.01514862]
[1770473711716,0.57828379,69077.0,69050.0,0.01514862]
[1770473712415,0.57828379,69077.0,69039.0,0.00874913]
[1770473712722,0.58041695,69074.0,69041.0,0.00874913]
[1770473713022,0.58041695,69070.0,69041.0,0.00874913]
[1770473713321,1.00856382,69110.0,69038.0,0.28664279]
[1770473713322,0.58041695,69065.0,69038.0,0.28664279]
[1770473713822,0.57967578,69061.0,69038.0,0.28664279]
[1770473714223,0.57967578,69058.0,69038.0,0.28664279]
[1770473714616,0.57967578,69057.0,69038.0,0.28664279]
[1770473714817,0.57967578,69057.0,69031.0,0.29286333]
[1770473715019,0.57967578,69052.0,69024.0,0.01097265]
[1770473715418,0.4295298,69051.0,69024.0,0.01097265]
[1770473715621,0.57967578,69050.0,69024.0,0.01097265]
[1770473715821,1.00650963,69049.0,69024.0,0.01097265]
[1770473716227,0.57697983,69049.0,69024.0,0.01097265]
[1770473716628,0.55417185,69047.0,69023.0,0.28981589]
[1770473716823,0.55417185,69047.0,69024.0,0.30386006]
[1770473717129,0.98370165,69047.0,69024.0,0.30386006]
[1770473717329,0.55417185,69047.0,69024.0,0.30386006]
[1770473717724,0.55417185,69047.0,69023.0,0.28981589]
[1770473718425,0.55417185,69042.0,69016.0,0.30386006]
[1770473719423,0.55417185,69040.0,69016.0,0.30386006]
[1770473719629,0.55417185,69040.0,69008.0,0.29458663]
[1770473719823,0.55417185,69036.0,69008.0,0.29458663]
[1770473720729,0.55417185,69035.0,69008.0,0.29458663]
[1770473721233,0.55417185,69035.0,69015.0,0.29028492]
[1770473721935,0.4295298,69037.0,69016.0,0.29424743]
[1770473722232,0.4295298,69037.0,69015.0,0.29028492]
[1770473722233,0.57090572,69047.0,69022.0,0.29424743]
[1770473722426,0.58333333,69046.0,69022.0,0.29424743]
[1770473722936,0.58333333,69055.0,69022.0,0.29424743]
[1770473723332,0.58333333,69055.0,69023.0,0.014503]
[1770473723927,0.58333333,69055.0,69024.0,0.00747102]
[1770473724330,0.58333333,69055.0,69015.0,0.29028492]
[1770473724331,0.58333333,69055.0,69028.0,0.00747102]
[1770473724931,0.58333333,69055.0,69016.0,0.00747102]
[1770473725328,0.58333333,69055.0,69021.0,0.00747102]
[1770473726335,0.58333333,69055.0,69021.0,0.014503]
[1770473727039,0.58333333,69055.0,69028.0,0.001]
[1770473727635,0.58333333,69055.0,69017.0,0.014504]
[1770473727836,0.58333333,69055.0,69019.0,0.014504]
[1770473728036,0.58333333,69055.0,69015.0,0.29028492]
[1770473730244,0.58333333,69044.0,69015.0,0.29028492]
[1770473730636,0.58333333,69042.0,69015.0,0.29028492]
[1770473731036,0.58333333,69041.0,69015.0,0.29028492]
[1770473731944,0.58333333,69041.0,69008.0,0.28364271]
[1770473732140,1.01209211,69041.0,69008.0,0.28364271]
[1770473732339,0.58333333,69040.0,69008.0,0.28364271]
[1770473734143,1.01209211,69040.0,69008.0,0.28364271]
[1770473734341,0.58333333,69039.0,69008.0,0.28364271]
[1770473734543,1.01209211,69039.0,69008.0,0.28364271]
[1770473734841,0.58333333,69038.0,69008.0,0.28364271]
[1770473736244,0.58333333,69037.0,69008.0,0.28364271]
[1770473736638,0.42875878,69036.0,69008.0,0.28364271]
[1770473736838,0.58333333,69035.0,69008.0,0.28364271]
[1770473737143,0.58333333,69034.0,69008.0,0.28364271]
[1770473737645,0.58333333,69034.0,68992.0,0.01469334]
[1770473737646,0.349,69009.0,68992.0,0.00018434]
[1770473738037,0.58333333,69015.0,68992.0,0.00130016]
[1770473738038,0.349,68993.0,68992.0,0.00130016]
[1770473738238,0.58333333,69015.0,68985.0,0.014711]
[1770473738439,0.58333333,69013.0,68985.0,0.014711]
[1770473738634,0.58333333,69013.0,68985.0,0.014511]
[1770473738842,0.93233333,69012.0,68990.0,0.29059272]
[1770473739046,0.58333333,69012.0,68990.0,0.29059272]
[1770473739345,0.349,69011.0,68990.0,0.29059272]
[1770473739843,0.349,69010.0,68990.0,0.29059272]
[1770473740039,0.349,69010.0,68960.0,0.48376]
[1770473740040,0.1471261,69000.0,68951.0,0.28993714]
[1770473740233,0.57090572,69032.0,68959.0,0.28993714]
[1770473740234,0.58008422,68999.0,68959.0,0.28993714]
[1770473740434,0.004,68983.0,68966.0,0.28993714]
[1770473740943,0.00014093,68982.0,68971.0,0.28993714]
[1770473741148,0.3488,68997.0,68971.0,0.28993714]
[1770473741339,0.58008422,68997.0,68971.0,0.28993714]
[1770473741538,0.58008422,68995.0,68971.0,0.28993714]
[1770473741935,0.3488,68994.0,68971.0,0.28993714]
[1770473742139,0.92888422,68994.0,68971.0,0.28993714]
[1770473742339,0.58008422,68992.0,68962.0,0.22905899]
[1770473742538,0.1471261,69020.0,68962.0,0.22905899]
[1770473742539,0.58008422,68991.0,68962.0,0.22905899]
[1770473743049,0.3488,68990.0,68962.0,0.22905899]
[1770473743247,0.58013031,68989.0,68962.0,0.22905899]
[1770473743542,0.58008422,68988.0,68962.0,0.22905899]
[1770473743735,0.58008422,68986.0,68962.0,0.22905899]
[1770473744141,0.3488,68985.0,68962.0,0.22905899]
[1770473744343,0.92888422,68985.0,68962.0,0.22905899]
[1770473744642,0.58008422,68983.0,68951.0,0.29389192]
[1770473744846,4.609e-05,68982.0,68951.0,0.55075254]
[1770473745044,0.58008422,68981.0,68952.0,0.25686062]
[1770473745239,0.58008422,68980.0,68952.0,0.25686062]
[1770473745439,0.58008422,68979.0,68952.0,0.25686062]
[1770473745636,0.58008422,68977.0,68952.0,0.25686062]
[1770473746047,0.58008422,68975.0,68944.0,0.27648292]
[1770473746244,0.58008422,68975.0,68947.0,0.261921]
[1770473746447,0.3488,68974.0,68951.0,0.26176292]
[1770473746955,0.3488,68973.0,68951.0,0.26176292]
[1770473747154,0.3488,68974.0,68951.0,0.26176292]
[1770473747349,0.3488,68974.0,68955.0,0.28891196]
[1770473747652,0.3488,68973.0,68955.0,0.28891196]
[1770473747954,0.58008422,68975.0,68951.0,0.26176292]
[1770473747955,0.3488,68974.0,68951.0,0.26176292]
[1770473748155,0.58013031,68973.0,68951.0,0.26176292]
[1770473748451,0.58013031,68973.0,68948.0,0.29283069]
[1770473748452,0.58008422,68972.0,68948.0,0.29283069]
[1770473748659,0.58008422,68971.0,68948.0,0.29283069]
[1770473748961,0.58008422,68970.0,68948.0,0.29283069]
[1770473749252,0.58008422,68969.0,68948.0,0.29283069]
[1770473749452,0.58008422,68968.0,68947.0,0.00015808]
[1770473749748,0.92888422,68968.0,68947.0,0.00015808]
[1770473749949,0.3488,68967.0,68947.0,0.00015808]
[1770473750142,0.92888422,68967.0,68947.0,0.00015808]
[1770473750348,0.3488,68966.0,68947.0,0.00015808]
[1770473750952,0.3488,68965.0,68948.0,0.19666394]
[1770473751258,0.58008422,68975.0,68952.0,0.48184321]
[1770473751556,0.3488,68974.0,68952.0,0.48184321]
[1770473752062,0.3488,68973.0,68952.0,0.48184321]
[1770473752356,0.58008422,68973.0,68952.0,0.28517927]
[1770473752558,0.58008422,68971.0,68952.0,0.28517927]
[1770473752856,0.58008422,68969.0,68952.0,0.28517927]
[1770473753047,4.609e-05,68968.0,68952.0,0.28517927]
[1770473753254,0.58008422,68967.0,68947.0,0.00015808]
[1770473753554,0.58008422,68966.0,68947.0,0.00015808]
[1770473753854,0.58008422,68965.0,68947.0,0.00015808]
[1770473754052,0.3488,68964.0,68947.0,0.00015808]
[1770473754358,0.58008422,68963.0,68935.0,0.22305321]
[1770473754548,0.58008422,68962.0,68944.0,0.0002]
[1770473754857,0.349,68946.0,68944.0,0.0002]
[1770473755056,0.349,68945.0,68937.0,0.25320659]
[1770473755448,5.5e-07,68945.0,68940.0,0.22285321]
[1770473755656,0.3488,68961.0,68940.0,0.22285321]
[1770473755957,0.3488,68960.0,68940.0,0.22285321]
[1770473756256,0.3488,68961.0,68940.0,0.22285321]
[1770473756558,0.58008422,68960.0,68937.0,0.01583238]
[1770473756752,0.58008422,68959.0,68937.0,0.01583238]
[1770473756949,0.58008422,68958.0,68937.0,0.01583238]
[1770473757148,0.58008422,68957.0,68937.0,0.01583238]
[1770473757351,0.58008422,68956.0,68937.0,0.01583238]
[1770473757557,0.58008422,68955.0,68937.0,0.01583238]
[1770473757757,0.58008422,68954.0,68937.0,0.01583238]
[1770473757948,0.5801644,68953.0,68937.0,0.01583238]
[1770473758153,0.58008422,68952.0,68937.0,0.01583238]
[1770473758348,0.58008422,68951.0,68937.0,0.01583238]
[1770473758555,0.58008422,68949.0,68937.0,0.01683238]
[1770473758950,0.3488,68948.0,68937.0,0.01683238]
[1770473759157,0.58008422,68947.0,68937.0,0.01683238]
[1770473759361,0.92888422,68947.0,68937.0,0.01583238]
[1770473759550,0.3488,68946.0,68937.0,0.01583238]
[1770473760059,0.3488,68945.0,68937.0,0.01583238]
[1770473760256,0.3488,68946.0,68937.0,0.01583238]
[1770473760654,0.3488,68945.0,68937.0,0.01583238]
[1770473760952,0.92888422,68946.0,68937.0,0.01583238]
[1770473761160,0.58008422,68946.0,68937.0,0.01583238]
[1770473761348,0.2924261,68980.0,68937.0,0.01583238]
[1770473761349,0.3488,68945.0,68937.0,0.17800433]
[1770473761549,0.58008422,68964.0,68938.0,0.16237195]
[1770473761952,0.58008422,68962.0,68938.0,0.16237195]
[1770473762151,0.58008422,68962.0,68938.0,0.0002]
[1770473762452,0.58008422,68960.0,68938.0,0.0002]
[1770473762650,0.58008422,68960.0,68937.0,0.01583238]
[1770473762847,0.4941,68979.0,68937.0,0.01583238]
[1770473762848,0.58008422,68958.0,68937.0,0.01583238]
[1770473763251,0.58008422,68956.0,68937.0,0.01583238]
[1770473763756,0.58008422,68954.0,68937.0,0.01583238]
[1770473764156,0.14759269,68970.0,68937.0,0.01583238]
[1770473764157,0.58008422,68952.0,68937.0,0.01583238]
[1770473764665,0.58008422,68950.0,68937.0,0.01583238]
[1770473765063,0.3488,68949.0,68937.0,0.01583238]
[1770473765267,0.58008422,68958.0,68937.0,0.01583238]
[1770473765562,0.92888422,68957.0,68937.0,0.01583238]
[1770473765751,0.58008422,68957.0,68937.0,0.01583238]
[1770473765955,0.3488,68956.0,68937.0,0.01583238]
[1770473766151,0.58333333,68955.0,68930.0,0.29267419]
[1770473766359,0.58333333,68954.0,68930.0,0.29267419]
[1770473766561,0.58333333,68953.0,68930.0,0.29267419]
[1770473766764,0.58333333,68952.0,68930.0,0.29267419]
[1770473766958,0.58333333,68951.0,68930.0,0.29267419]
[1770473767161,0.58333333,68950.0,68930.0,0.29267419]
[1770473767369,0.58333333,68949.0,68930.0,0.29267419]
[1770473767556,0.58333333,68948.0,68930.0,0.29267419]
[1770473767753,0.58333333,68947.0,68930.0,0.29267419]
[1770473767967,0.93213333,68947.0,68930.0,0.29267419]
[1770473768153,0.3488,68946.0,68930.0,0.29267419]
[1770473768568,0.3488,68945.0,68933.0,0.014522]
[1770473768767,0.57212014,68960.0,68934.0,0.03363955]
[1770473768964,0.3488,68959.0,68934.0,0.03363955]
[1770473769170,0.57212014,68978.0,68940.0,0.01452]
[1770473769358,0.57212014,68978.0,68940.0,0.04815955]
[1770473769563,0.57212014,68978.0,68942.0,0.01452]
[1770473770064,0.57212014,68978.0,68940.0,0.04815955]
[1770473770465,0.57212014,68978.0,68930.0,0.29267419]
[1770473770466,0.57212014,68978.0,68937.0,0.014521]
[1770473770658,0.57212014,68978.0,68938.0,0.03922749]
[1770473772259,0.57212014,68978.0,68942.0,0.01452]
[1770473772459,0.57212014,68978.0,68930.0,0.29267419]
[1770473772460,0.57212014,68978.0,68944.0,0.01452]
[1770473772868,0.57212014,68978.0,68950.0,0.014518]
[1770473773073,0.57212014,68978.0,68947.0,0.014519]
[1770473773370,0.57212014,68978.0,68947.0,0.05750132]
[1770473773670,0.57212014,68978.0,68948.0,0.04298232]
[1770473773961,0.57212014,68978.0,68937.0,0.014521]
[1770473773962,0.56954933,68986.0,68961.0,0.014516]
[1770473774266,0.56954933,68986.0,68957.0,0.05586899]
[1770473774455,0.56954933,68986.0,68958.0,0.04135199]
[1770473774859,0.56954933,68986.0,68959.0,0.014516]
[1770473775265,0.56954933,68986.0,68962.0,0.014516]
[1770473775464,0.56954933,68986.0,68963.0,0.04135199]
[1770473777067,0.56954933,68986.0,68961.0,0.014516]
[1770473777068,0.57140452,69004.0,68967.0,0.03578642]
[1770473777376,0.57140452,69004.0,68962.0,0.014516]
[1770473778172,0.57140452,69004.0,68963.0,0.001]
[1770473778370,0.57140452,69004.0,68964.0,0.014515]
[1770473779071,0.57140452,69004.0,68951.0,0.64466841]
[1770473779072,0.57140452,69004.0,68961.0,0.03818072]
[1770473779264,0.57140452,69004.0,68966.0,0.014515]
[1770473779659,0.57140452,69004.0,68966.0,0.05269572]
[1770473779863,0.57140452,69004.0,68967.0,0.03818072]
[1770473780671,0.57140452,69004.0,68968.0,0.014515]
[1770473781062,0.57140452,69004.0,68969.0,0.03599289]
[1770473781268,0.57140452,69004.0,68962.0,0.014516]
[1770473781462,0.57140452,69004.0,68962.0,0.05050889]
[1770473782068,0.57140452,69004.0,68966.0,0.014515]
[1770473782264,0.57140452,69004.0,68968.0,0.014515]
[1770473782565,0.57140452,69004.0,68967.0,0.03383193]
[1770473783659,0.57140452,69004.0,68967.0,0.04834693]
[1770473783971,0.57140452,69004.0,68989.0,0.28705778]
[1770473784270,0.57140452,69004.0,68982.0,0.01780746]
[1770473785167,0.57240452,69004.0,68982.0,0.01780746]
[1770473785975,0.57140452,69004.0,68982.0,0.01780746]
[1770473787168,0.57140452,69004.0,68967.0,0.03383193]
[1770473787472,0.57140452,69004.0,68973.0,0.55964943]
[1770473789668,0.57140452,69004.0,68960.0,0.0002]
[1770473789872,0.54285079,68999.0,68960.0,0.0002]
[1770473790071,0.54285079,68999.0,68967.0,0.28752635]
[1770473790377,0.54294893,68998.0,68967.0,0.28752635]
[1770473790568,0.54294893,68996.0,68967.0,0.28752635]
[1770473793583,0.54232601,68993.0,68967.0,0.28752635]
[1770473795674,0.5402314,68992.0,68967.0,0.28752635]
[1770473796085,0.56283552,68991.0,68967.0,0.28752635]
[1770473796579,0.56283552,68990.0,68967.0,0.28752635]
[1770473797777,0.56283552,68988.0,68967.0,0.28752635]
[1770473797978,0.56283552,68988.0,68968.0,0.12415988]
[1770473798281,0.9915943,68994.0,68968.0,0.12415988]
[1770473798481,0.56283552,68994.0,68968.0,0.12415988]
[1770473800376,0.56283552,68993.0,68968.0,0.12415988]
[1770473800976,0.56283552,68993.0,68967.0,0.28752635]
[1770473801188,0.42875878,68992.0,68967.0,0.42692425]
[1770473801483,0.56283552,68991.0,68967.0,0.42692425]
[1770473801678,0.42875878,68989.0,68967.0,0.42692425]
[1770473801984,0.56283552,68988.0,68968.0,0.13829492]
[1770473802376,0.42875878,68993.0,68973.0,0.47389851]
[1770473802578,0.42875878,68992.0,68973.0,0.47389851]
[1770473802776,0.9915943,68992.0,68973.0,0.47389851]
[1770473802977,0.56283552,68991.0,68967.0,0.28752635]
[1770473803379,0.56283552,68981.0,68960.0,0.28915178]
[1770473803681,0.56283552,68981.0,68953.0,0.0002]
[1770473803682,0.56283552,68980.0,68953.0,0.58144889]
[1770473804078,0.56283552,68977.0,68953.0,0.58124889]
[1770473804484,0.56283552,68976.0,68953.0,0.58124889]
[1770473804879,0.56283552,68974.0,68953.0,0.58124889]
[1770473805888,0.56283552,68974.0,68951.0,0.28367396]
[1770473806190,0.56283552,68972.0,68951.0,0.28367396]
[1770473807383,0.56283552,68971.0,68951.0,0.28367396]
[1770473807586,0.9915943,68971.0,68951.0,0.28367396]
[1770473807786,0.56283552,68970.0,68951.0,0.28367396]
[1770473807981,0.9915943,68970.0,68951.0,0.28367396]
[1770473808285,0.9915943,68970.0,68937.0,0.0002]
[1770473808286,0.56283552,68969.0,68937.0,0.0002]
[1770473808491,0.56283552,68965.0,68932.0,0.58124889]
[1770473809284,0.56283552,68964.0,68932.0,0.58124889]
[1770473809688,0.56283552,68963.0,68932.0,0.58124889]
[1770473810185,0.56283552,68960.0,68939.0,0.29687524]
[1770473811788,0.56283552,68960.0,68932.0,0.58124889]
[1770473811789,0.56283552,68960.0,68928.0,0.0002]
[1770473812392,0.56283552,68960.0,68934.0,0.28554463]
[1770473813588,0.56283552,68959.0,68927.0,0.29498148]
[1770473813794,0.349,68935.0,68927.0,0.58124889]
[1770473815394,0.349,68928.0,68927.0,0.58124889]
[1770473815597,0.06147366,68928.0,68923.0,0.28628673]
[1770473816100,0.06147366,68928.0,68913.0,0.58144889]
[1770473816593,0.3495,68921.0,68913.0,0.58144889]
[1770473816793,0.3495,68921.0,68913.0,0.58124889]
[1770473816993,0.3495,68914.0,68913.0,0.58124889]
[1770473817399,0.56283552,68935.0,68913.0,0.58124889]
[1770473817599,0.56283552,68934.0,68913.0,0.58124889]
[1770473817800,0.56283552,68933.0,68913.0,0.58124889]
[1770473818099,0.56283552,68932.0,68908.0,0.0002]
[1770473818293,0.56283552,68931.0,68908.0,0.0002]
[1770473818491,0.56283552,68930.0,68908.0,0.00015]
[1770473818693,0.92559552,68930.0,68908.0,0.00015]
[1770473818893,0.36276,68929.0,68908.0,0.00015]
[1770473819094,0.36276,68929.0,68908.0,0.0001]
[1770473819095,0.56283552,68928.0,68908.0,0.0001]
[1770473819292,0.92559552,68928.0,68908.0,0.58134889]
[1770473819491,0.36276,68927.0,68908.0,0.58134889]
[1770473819893,0.36276,68926.0,68908.0,0.58134889]
[1770473820095,0.56283552,68944.0,68913.0,0.58124889]
[1770473820294,0.56283552,68944.0,68922.0,0.54014107]
[1770473820499,0.33624,68943.0,68922.0,0.54014107]
[1770473820703,0.33624,68942.0,68922.0,0.54014107]
[1770473821007,0.56283552,68963.0,68935.0,0.54014107]
[1770473821203,0.56283552,68969.0,68944.0,0.54314107]
[1770473821706,0.33624,68968.0,68946.0,0.54314107]
[1770473822002,0.56283552,68977.0,68946.0,0.54314107]
[1770473822200,0.33624,68976.0,68946.0,0.54314107]
[1770473822503,0.33624,68976.0,68952.0,0.52299287]
[1770473822800,0.42875878,69003.0,68956.0,0.52299287]
[1770473822801,0.33624,68975.0,68956.0,0.52299287]
[1770473822999,0.56283552,68985.0,68958.0,0.52299287]
[1770473823204,0.33624,68984.0,68966.0,0.52299287]
[1770473823400,0.33624,68995.0,68978.0,0.52299287]
[1770473823801,0.33624,68994.0,68978.0,0.52299287]
[1770473824000,0.56283552,68994.0,68977.0,0.29077199]
[1770473824300,0.89907552,68993.0,68977.0,0.29077199]
[1770473824502,0.33624,68995.0,68970.0,0.30595336]
[1770473824707,0.33624,68995.0,68971.0,0.53429018]
[1770473824907,0.33624,68994.0,68971.0,0.53429018]
[1770473825107,0.33624,68995.0,68971.0,0.53429018]
[1770473825299,0.33624,68995.0,68972.0,0.54880418]
[1770473825500,0.33624,68994.0,68972.0,0.53429018]